[Event "AUT Bundesliga 2024-25"]
[Site "Austria"]
[Date "2025.04.04"]
[Round "8.27"]
[White "Platzgummer, Fabian"]
[Black "Maghsoodloo, Parham"]
[Result "0-1"]
[Annotator "TA"]
[ECO "A07"]
[WhiteElo "2294"]
[BlackElo "2684"]
[PlyCount "94"]
[EventDate "2024.08.28"]
[EventType "team-tourn"]
[EventCountry "AUT"]
[SourceTitle "playchess.com"]
[Source "ChessBase"]
[SourceQuality "1"]
[TimeControl "40/5400+30:1800+30"]

{[%evp 9,94,8,9,2,9,0,0,0,0,0,0,0,0,0,0,-8,-9,-15,-6,-7,0,0,11,10,14,0,16,0,12,13,10,-4,6,-21,-16,-28,-9,-4,-10,-10,-3,-8,0,4,15,-20,-10,-41,-36,-43,-40,-48,-35,-9,-25,-144,-143,-132,-131,-133,-141,-130,-122,-133,-98,-115,-91,-93,-91,-123,-118,-200,-173,-283,-283,-308,-308,-401,-368,-988,-919,-1255,-1228,-1620,-1612,-1571,-1574]} 1. Nf3 {[%emt 0:00:03]} d5 {[%emt 0:00:07]} 2. g3 {[%emt 0:00:10]} c6 {[%emt 0:01:39]} 3. Bg2 {[%emt 0:00:13]} Bf5 {[%emt 0:00:31]} 4. O-O {[%emt 0:00:35]} Nd7 {[%emt 0:00:06]} 5. d3 {[%emt 0:01:45]} e5 {[%emt 0:00:38]} 6. c4 {[%emt 0:13:03] A07: Réti Opening: New York and Capablanca Systems.} dxc4 {[%emt 0:05:38]} 7. dxc4 {[%emt 0:02:19]} h6 {[%emt 0:03:45]} 8. b3 {[%emt 0:15:07] The position is equal.} Qc7 {[%emt 0:07:32]} 9. Bb2 {[%emt 0:02:01]} Ngf6 {[%emt 0:00:56]} 10. Nc3 $146 {[%emt 0:04:00]} (10. Qc1 Bc5 11. Nxe5 Nxe5 12. Qf4 Nf3+ 13. Qxf3 Be4 14. Qc3 O-O-O 15. Bxe4 Nxe4 16. Qf3 {1-0 Andreasson,I-Hartman,C (2315) SWE-ch Stockholm 1987}) 10... Bh7 {[%emt 0:14:35]} 11. Qc1 {[%emt 0:04:12]} Bd6 {[%emt 0:11:23]} 12. Rd1 {[%emt 0:08:45]} O-O {[%emt 0:00:30]} 13. Nd2 {[%emt 0:09:39]} Be7 {[%emt 0:06:48]} 14. Na4 {[%emt 0:07:31]} Rfe8 {[%emt 0:03:57]} 15. c5 {[%emt 0:06:17]} e4 {[%emt 0:02:44][%cal Oe4e3]} 16. Bd4 {[%emt 0:02:49]} Bf8 {[%emt 0:08:20]} 17. Nc4 {[%emt 0:00:45]} Nd5 {[%emt 0:00:07]} 18. Ne3 {[%emt 0:00:56]} Rad8 {[%emt 0:02:39]} 19. Nxd5 {[%emt 0:03:22]} cxd5 {[%emt 0:00:16]} 20. b4 {[%emt 0:00:10]} Ne5 {[%emt 0:01:31]} 21. b5 {[%emt 0:01:10]} Bf5 {[%emt 0:02:43]} 22. Qc3 {[%emt 0:06:08]} Nc4 {[%emt 0:09:01]} 23. Nb2 {[%emt 0:02:25]} Bxc5 {[%emt 0:01:09]} 24. Nxc4 {[%emt 0:03:11]} Bxd4 {[%emt 0:00:14]} 25. Rxd4 {[%emt 0:00:21]} dxc4 {[%emt 0:04:48]} 26. Rxc4 {[%emt 0:00:49]} Qb6 {[%emt 0:00:03]} 27. Rc5 {[%emt 0:01:21]} Bg4 {[%emt 0:01:16]} 28. e3 {[%emt 0:02:49]} Rd3 {[%emt 0:01:34]} 29. Qc4 {[%emt 0:00:04]} Qf6 {[%emt 0:07:20]} 30. Rf1 {[%emt 0:01:12]} Rd2 $1 {[%emt 0:00:02] [#] and ...Be2 would now be decisive} 31. Bxe4 {[%emt 0:02:08]} Be2 {[%emt 0:00:06]} 32. Rc8 {[%emt 0:00:03] Black continues to play with concentration.} Red8 $17 {[%emt 0:00:13] Some like it hot. Black is much more active.} 33. Qc1 {[%emt 0:01:02]} ({Reject} 33. Rxd8+ Qxd8 34. Qc3 Bxf1 (34... Rxa2 35. Rc1 $11) (34... Bxb5 35. Re1 $15) 35. Kxf1 Rxa2) 33... Bxf1 $40 {[%emt 0:02:38][%mdl 128] Black wants a kill.} 34. Qxd2 {[%emt 0:00:11]} Rxc8 {[%emt 0:00:03]} 35. Kxf1 {[%emt 0:00:06][%mdl 4096] Endgame KQR-KQB} Qe5 {[%emt 0:00:20]} 36. Qd3 {[%emt 0:01:02]} b6 {[%emt 0:02:18]} 37. Kg2 {[%emt 0:00:37]} g6 {[%emt 0:00:31]} 38. Bd5 {[%emt 0:00:33]} Qf6 {[%emt 0:00:33]} 39. e4 {[%emt 0:00:31]} Rc3 {[%emt 0:00:39]} 40. Qe2 {[%emt 0:00:33]} (40. Qd1 $17) 40... Kg7 {[%emt 0:00:09]} 41. a4 {[%emt 0:06:05]} (41. Bb3 $142) 41... h5 $19 {[%emt 0:01:06]} 42. h4 {[%emt 0:00:33]} Qd4 {[%emt 0:00:38]} 43. g4 {[%emt 0:01:56]} Qf6 {[%emt 0:00:55]} (43... Qxa4 $2 44. gxh5 Qd4 45. hxg6 fxg6 46. Qg4 $17) 44. g5 $2 {[%emt 0:03:44] [#]} (44. Qd1 hxg4 (44... Qxh4 45. Qd4+ Qf6 46. e5 $11) 45. Qxg4) 44... Qf4 {[%emt 0:01:46] Black is clearly winning.} 45. Qb2 {[%emt 0:00:28]} Qf3+ {[%emt 0:00:07]} 46. Kh2 {[%emt 0:00:29]} Kg8 {[%emt 0:00:57]} 47. Qd2 {[%emt 0:01:45]} Rd3 {[%emt 0:00:27] Weighted Error Value: White=0.55/Black=0.05 (flawless)   Mistake:       	White=4     	---        Inaccurate:     	White=6     	---        OK:         	White=18    	Black=18     Best:        	White=2     	Black=4      Strong:       	---       	Black=1} 0-1

[Event "AUT Bundesliga 2024-25"]
[Site "Austria"]
[Date "2025.04.04"]
[Round "8.28"]
[White "Rodshtein, Maxim"]
[Black "Tabernig, Bernhard"]
[Result "1-0"]
[Annotator "TA"]
[ECO "A11"]
[WhiteElo "2647"]
[BlackElo "2262"]
[PlyCount "55"]
[EventDate "2024.08.28"]
[EventType "team-tourn"]
[EventCountry "AUT"]
[SourceTitle "playchess.com"]
[Source "ChessBase"]
[SourceQuality "1"]
[TimeControl "40/5400+30:1800+30"]

{[%evp 11,55,16,14,12,16,12,23,20,24,4,37,26,29,25,39,46,64,32,58,29,73,65,62,63,150,133,229,256,252,198,236,251,240,241,333,345,425,214,319,339,460,520,516,505,29992,29993]} 1. Nf3 {[%emt 0:00:04]} d5 {[%emt 0:00:09]} 2. g3 {[%emt 0:00:13]} Nf6 {[%emt 0:00:08]} 3. Bg2 {[%emt 0:00:09]} c6 {[%emt 0:00:21]} 4. O-O {[%emt 0:00:23]} Bf5 {[%emt 0:04:53]} 5. c4 {[%emt 0:00:37]} e6 {[%emt 0:01:22]} 6. Qb3 {[%emt 0:00:35]} Qb6 {[%emt 0:00:37]} 7. d3 {[%emt 0:00:26] A11: English Opening: 1...c6.} Nbd7 {[%emt 0:05:49]} 8. cxd5 {[%emt 0:01:25]} Qxb3 {[%emt 0:01:46]} 9. axb3 {[%emt 0:00:06] [#] White has an edge.} exd5 {[%emt 0:00:08]} 10. Nd4 $5 {[%emt 0:01:03][%mdl 4] A promising side line.} Be6 $146 {[%emt 0:06:57]} (10... Bg6 11. Bd2 Bc5 12. Bc3 O-O 13. b4 Bb6 14. Nd2 Rfe8 15. Rfe1 a6 16. N2b3 h5 {0-1 Balakrishnan,P (2510)-Wang,J (2471) Chesterfield SPICE Cup op 2022 (9)}) 11. Na3 {[%emt 0:08:29]} Bc5 {[%emt 0:26:55]} 12. Nac2 $36 {[%emt 0:00:53][%mdl 2048] White is pushing.} a6 {[%emt 0:01:32]} 13. b4 {[%emt 0:02:14]} Ba7 {[%emt 0:01:14]} 14. f4 {[%emt 0:08:10] [#]} g6 {[%emt 0:00:58]} 15. h3 {[%emt 0:00:47]} Nh5 {[%emt 0:07:42]} 16. g4 {[%emt 0:07:42]} Ng7 {[%emt 0:00:08]} 17. Be3 {[%emt 0:01:32] f5 is the strong threat.} f5 {[%emt 0:01:08]} ({Better is} 17... Nb6 $14) 18. b5 $16 {[%emt 0:01:36] White is more active.} fxg4 {[%emt 0:12:12]} (18... cxb5 $16 19. Nxe6 Bxe3+ 20. Nxe3 Nxe6 21. Nxd5 (21. gxf5 gxf5 22. Bxd5 Nd4 $16) (21. Bxd5 Nd4 $16) 21... O-O-O) 19. bxc6 $18 {[%emt 0:00:55]} bxc6 {[%emt 0:00:15]} 20. hxg4 {[%emt 0:01:43]} (20. Nxc6 gxh3 21. Bxa7 (21. Nxa7 hxg2 22. Kxg2 O-O $16) 21... hxg2 $16) 20... Bxg4 {[%emt 0:04:06]} 21. Nxc6 {[%emt 0:03:54]} Bxe3+ {[%emt 0:06:16]} 22. Nxe3 {[%emt 0:00:07][%cal Bc2e3,Be3d5,Bd5c7][%mdl 32]} Bxe2 {[%emt 0:01:58]} 23. Rfe1 {[%emt 0:00:07]} Bxd3 {[%emt 0:00:03]} 24. Rad1 {[%emt 0:02:58]} ({Less strong is} 24. Nxd5+ Kf8 25. Re7 Bb5 $18) (24. Bxd5 $142 Nc5 25. Nf5+ Kf8 26. Nxg7) 24... Bb5 {[%emt 0:03:08]} (24... O-O {was called for.} 25. Rxd3 (25. Bxd5+ Kh8 $18) 25... Rae8 26. Rxd5 (26. Bxd5+ Kh8 $18) 26... Nb6) 25. Nxd5+ {[%emt 0:00:35]} Kf8 {[%emt 0:00:53]} 26. Nc7 $1 {[%emt 0:00:26][%csl LRa8,LRd7][%cal Od1d7]} Bxc6 {[%emt 0:05:41]} 27. Bxc6 {[%emt 0:00:36][%cal Od1d7]} Rb8 {[%emt 0:01:42]} (27... Rd8 $18 28. Bxd7 (28. Rxd7 Rxd7 29. Bxd7 Kf7 $18) 28... Kf7 29. Nxa6 Nh5) 28. Rxd7 {[%emt 0:00:23] Weighted Error Value: White=0.19 (very precise) /Black=0.67  Mistake:       	White=1     	Black=4      Inaccurate:     	White=1     	Black=4      OK:         	White=10    	Black=7      Best:        	White=3     	---} 1-0

[Event "AUT Bundesliga 2024-25"]
[Site "Austria"]
[Date "2025.04.04"]
[Round "8.29"]
[White "Schiestl, Josef"]
[Black "Shimanov, Aleksandr"]
[Result "0-1"]
[Annotator "TA"]
[ECO "C54"]
[WhiteElo "2068"]
[BlackElo "2578"]
[PlyCount "66"]
[EventDate "2024.08.28"]
[EventType "team-tourn"]
[EventCountry "AUT"]
[SourceTitle "playchess.com"]
[Source "ChessBase"]
[SourceQuality "1"]
[TimeControl "40/5400+30:1800+30"]

{[%evp 10,66,24,6,8,4,34,12,20,3,6,4,20,10,18,0,8,-4,-16,-16,-14,-34,-16,-20,-34,-41,-39,-39,-54,-42,-45,-72,-14,-46,-62,-62,-53,-59,62,-86,0,-106,-108,-100,-98,-100,-85,-138,-145,-160,-154,-243,-122,-158,-137,-292,-297,-288,-270]} 1. e4 {[%emt 0:00:01]} e5 {[%emt 0:00:37]} 2. Bc4 {[%emt 0:00:20]} Nf6 {[%emt 0:00:19]} 3. d3 {[%emt 0:00:10]} Nc6 {[%emt 0:00:11]} 4. Nf3 {[%emt 0:00:24]} Bc5 {[%emt 0:00:17]} 5. c3 {[%emt 0:00:27]} d6 {[%emt 0:01:21]} 6. Bb3 {[%emt 0:02:37]} a5 {[%emt 0:03:39] C54: Giuoco Piano: 4 c3 Nf6, main lines with 5 d4 and 5 d3.} 7. O-O {[%emt 0:01:09]} Ba7 {[%emt 0:03:49]} 8. Nbd2 {[%emt 0:09:44]} O-O {[%emt 0:02:07] The position is equal.} 9. h3 {[%emt 0:05:12]} Be6 {[%emt 0:03:29]} 10. Re1 {[%emt 0:02:04]} Re8 $5 {[%emt 0:13:49][%mdl 4] An interesting side line.} 11. Nf1 {[%emt 0:03:56]} h6 {[%emt 0:05:00]} 12. Ng3 {[%emt 0:08:08]} Bxb3 {[%emt 0:05:22]} 13. axb3 {[%emt 0:03:41]} d5 {[%emt 0:01:01]} 14. Bd2 $146 {[%emt 0:18:59]} (14. Qe2 Qd7 15. Nh2 Rad8 16. Ng4 Nxg4 17. Qxg4 Qxg4 18. hxg4 {½-½ Ivanchuk,V (2678)-Vidit,S (2727) Online Olym KO Stage rapid 2021 (1.21)}) 14... Bc5 {[%emt 0:03:55]} 15. exd5 {[%emt 0:06:14]} Nxd5 {[%emt 0:04:21]} 16. Be3 {[%emt 0:09:01]} Bd6 {[%emt 0:04:30]} 17. Nf5 {[%emt 0:10:11]} Qf6 {[%emt 0:01:16]} 18. Ng3 {[%emt 0:01:52]} Rad8 {[%emt 0:01:43]} 19. Ra4 {[%emt 0:01:30]} Qe6 {[%emt 0:01:43]} 20. Bc1 {[%emt 0:02:09]} Nb6 {[%emt 0:08:37]} (20... f5 $17) 21. Rae4 {[%emt 0:01:46]} f5 {[%emt 0:00:41]} 22. R4e2 {[%emt 0:00:35]} Qf6 $36 {[%emt 0:01:57][%mdl 2048] Wards off Nh4. Black fights for an advantage.} 23. Qc2 {[%emt 0:00:24][%cal Of3d4]} Nd5 {[%emt 0:01:47]} (23... Rf8 $15) 24. Nf1 {[%emt 0:01:47]} (24. b4 $1 $14 {was the only good move.}) 24... Rf8 {[%emt 0:01:11] Black is more active.} ({Black should play} 24... g5 $17) 25. Ng3 {[%emt 0:02:22]} (25. b4 $1 $11 {remains equal.}) 25... Kh8 $17 {[%emt 0:00:58]} 26. Nh5 {[%emt 0:01:18]} Qf7 {[%emt 0:01:15]} 27. Ng3 {[%emt 0:00:09]} Rde8 {[%emt 0:01:02]} 28. Bd2 {[%emt 0:00:37] [#]} (28. b4 $142 axb4 29. c4) 28... g5 $1 {[%emt 0:00:44]} 29. Bc1 {[%emt 0:01:16]} Nf4 {[%emt 0:00:45]} 30. Re3 {[%emt 0:01:46] [#]} (30. Rd2 $17) 30... Nxg2 {[%emt 0:04:50]} 31. Kxg2 {[%emt 0:00:11]} f4 $1 {[%emt 0:00:04][%csl LRe3,LRg3]} 32. Nxg5 $2 {[%emt 0:06:30]} (32. Re4 $17 fxg3 33. Qd1) 32... hxg5 $19 {[%emt 0:00:34]} 33. Rf3 {[%emt 0:00:00]} Qg6 {[%emt 0:01:07] Weighted Error Value: White=0.33/Black=0.22 (precise)   Mistake:       	White=5     	Black=4      Inaccurate:     	White=2     	Black=1      OK:         	White=7     	Black=12     Best:        	---       	Black=2      Strong:       	---       	Black=1} 0-1

[Event "AUT Bundesliga 2024-25"]
[Site "Austria"]
[Date "2025.04.04"]
[Round "8.30"]
[White "Balogh, Csaba"]
[Black "Csrnko, Werner"]
[Result "1-0"]
[Annotator "TA"]
[ECO "B00"]
[WhiteElo "2542"]
[BlackElo "1933"]
[PlyCount "51"]
[EventDate "2024.08.28"]
[EventType "team-tourn"]
[EventCountry "AUT"]
[SourceTitle "playchess.com"]
[Source "ChessBase"]
[SourceQuality "1"]
[TimeControl "40/5400+30:1800+30"]

{[%evp 9,51,63,90,94,120,92,93,100,104,71,87,54,96,85,119,115,124,101,120,96,121,112,132,128,147,153,324,281,352,350,442,442,516,490,586,581,865,945,1016,1009,1838,1853,29998,29999]} 1. e4 {[%emt 0:00:12]} b6 {[%emt 0:01:39]} 2. d4 {[%emt 0:01:10]} Bb7 {[%emt 0:00:13]} 3. Bd3 {[%emt 0:03:02]} e6 {[%emt 0:03:12]} 4. Nf3 {[%emt 0:01:46]} Be7 {[%emt 0:02:50]} 5. c4 {[%emt 0:04:15][%cal Bc2c4,Bc4d5][%mdl 32]} c5 $146 {[%emt 0:01:19]} (5... d6 6. Nc3 Nf6 7. O-O h5 8. d5 e5 9. Ne1 Nbd7 10. f4 exf4 11. Bxf4 Ne5 12. Nf3 Nfg4 {½-½ Kugel,N (1909)-Schoknecht,S (1793) Rheinland Pfalz Seniors op 21st 2024 (8)}) 6. d5 {[%emt 0:00:26] B00: Queen's Fianchetto Defence, Nimzowitsch Defence.} exd5 {[%emt 0:00:15]} 7. cxd5 {[%emt 0:01:25]} d6 {[%emt 0:00:18]} 8. Nc3 {[%emt 0:04:34] White is better.} Nf6 {[%emt 0:00:12]} 9. Bb5+ {[%emt 0:04:26]} Nfd7 {[%emt 0:08:52]} 10. a4 {[%emt 0:00:55] White has more active pieces.} a6 {[%emt 0:00:07]} 11. Bd3 {[%emt 0:00:16]} Nf6 {[%emt 0:02:36]} 12. O-O {[%emt 0:01:09]} Nbd7 {[%emt 0:01:27][%cal Bb8d7,Bd7e5,Be5g4][%mdl 32]} 13. h3 {[%emt 0:01:01]} h6 {[%emt 0:00:30]} 14. Re1 {[%emt 0:09:29]} Qc7 {[%emt 0:04:51]} 15. Nh4 {[%emt 0:08:48]} Ne5 {[%emt 0:02:18]} 16. Bf1 {[%emt 0:05:55]} g5 {[%emt 0:03:36]} 17. Nf5 {[%emt 0:02:00]} O-O-O $2 {[%emt 0:02:18] Black cannot hold the game after this.} (17... Bc8 $16 18. f4 gxf4) 18. b4 $18 {[%emt 0:10:49] [#] Strongly threatening a5.} g4 {[%emt 0:08:45]} 19. bxc5 {[%emt 0:04:21]} ({Worse is} 19. Nxh6 gxh3 (19... cxb4 20. Na2 $15) 20. bxc5 Bf8 (20... Qxc5 21. Be3 $15) (20... dxc5 21. gxh3 Ne8 22. Bf4 $14) 21. cxb6 (21. c6 Bxh6 22. Bxh6 Rxh6 $17) 21... Qxc3 $14) 19... bxc5 {[%emt 0:10:31]} 20. hxg4 {[%emt 0:00:32]} ({Less strong is} 20. Nxh6 gxh3 21. gxh3 Nfd7 $16) 20... Nexg4 {[%emt 0:02:41]} 21. Bf4 {[%emt 0:00:43]} Bf8 {[%emt 0:08:50]} 22. Rb1 {[%emt 0:00:35]} h5 {[%emt 0:04:24]} 23. Re2 {[%emt 0:00:40]} Kd7 {[%emt 0:00:42] [#]} 24. a5 $1 {[%emt 0:02:06][%mdl 512]} Ne8 {[%emt 0:02:18]} (24... Rb8 25. Reb2) 25. Reb2 {[%emt 0:00:37]} Bc8 {[%emt 0:01:27]} 26. Qa4+ {[%emt 0:00:10] Weighted Error Value: White=0.07 (flawless) /Black=1.13  Loses game:     	---       	Black=1      Inaccurate:     	White=2     	Black=3      OK:         	White=8     	Black=2      Best:        	---       	Black=1} 1-0

[Event "AUT Bundesliga 2024-25"]
[Site "Austria"]
[Date "2025.04.04"]
[Round "8.32"]
[White "Vitouch, Anatol"]
[Black "Brkic, Ante"]
[Result "0-1"]
[Annotator "TA"]
[ECO "A14"]
[WhiteElo "2271"]
[BlackElo "2586"]
[PlyCount "78"]
[EventDate "2024.08.28"]
[EventType "team-tourn"]
[EventCountry "AUT"]
[SourceTitle "playchess.com"]
[Source "ChessBase"]
[SourceQuality "1"]
[TimeControl "40/5400+30:1800+30"]

{[%evp 12,78,12,11,17,12,11,0,0,-33,-30,-22,-32,-89,-49,-119,-109,-139,-55,-68,-64,-70,-25,-27,-61,-56,-18,-101,-89,-110,-56,-30,-32,-217,-221,-339,-233,-250,-241,-618,-749,-747,-739,-671,-520,-868,-933,-893,-892,-1197,-1227,-1137,-1160,-1609,-1784,-1971,-1800,-1787,-1366,-1325,-1301,-29979,-29978,-5601,-5115,-29989,-29980,-29979,-29981]} 1. Nf3 {[%emt 0:00:02]} d5 {[%emt 0:00:09]} 2. g3 {[%emt 0:00:07]} Nf6 {[%emt 0:00:23]} 3. Bg2 {[%emt 0:00:09]} e6 {[%emt 0:00:05]} 4. c4 {[%emt 0:00:13]} Be7 {[%emt 0:00:23]} 5. O-O {[%emt 0:00:08]} O-O {[%emt 0:00:05]} 6. b3 {[%emt 0:00:40]} d4 {[%emt 0:00:31]} 7. e3 {[%emt 0:01:07]} c5 {[%emt 0:00:06] A14: English Opening: 1...e6 with b3 by White.} 8. exd4 {[%emt 0:00:27] 8.Ne5 is the fancy move.} cxd4 {[%emt 0:00:07]} 9. Re1 {[%emt 0:01:38]} Nc6 {[%emt 0:00:32] The position is equal.} 10. a3 {[%emt 0:03:22]} a5 $1 {[%emt 0:01:20]} 11. d3 {[%emt 0:00:22]} Nd7 {[%emt 0:05:33]} 12. Nfd2 $146 {[%emt 0:20:03]} (12. Nbd2 $15) (12. Ra2 e5 13. Rae2 Re8 14. Nbd2 f6 15. Nh4 Nc5 16. Ne4 g5 17. Nxc5 Bxc5 18. Nf3 Bg4 {0-1 Iordachescu,V (2589)-Deac,B (2625) Titled Tuesday intern op 21st July blitz 2020 (8)}) 12... e5 {[%emt 0:08:00]} 13. f4 {[%emt 0:02:09]} (13. Ra2 $15) 13... exf4 $17 {[%emt 0:01:16]} 14. gxf4 {[%emt 0:02:37]} Nc5 {[%emt 0:10:01]} (14... Bh4 $17 15. Rf1 Nf6) 15. Ne4 $15 {[%emt 0:01:04]} Nxe4 {[%emt 0:11:40]} 16. dxe4 {[%emt 0:00:20]} d3 {[%emt 0:12:50] And now ...Qd4+ would win.} 17. Kh1 {[%emt 0:02:19] [#]} a4 $1 {[%emt 0:03:45]} 18. Nc3 {[%emt 0:29:03]} Nd4 {[%emt 0:16:29][%cal Bc6d4,Bd4c2,Bc2e3][%mdl 32]} (18... Qd4 {feels hotter.} 19. Bb2 Qf2 20. Rb1 axb3 21. Nd5 Bxa3 22. Qxb3 Bxb2 23. Qxb2 Qc2) 19. b4 {[%emt 0:07:47]} (19. Re3 $11 {keeps the balance.} d2 (19... Nxb3 20. Rxd3 $11) 20. Bxd2 Nxb3 (20... axb3 21. Rd3 $11) 21. Ra2) 19... Nc2 $17 {[%emt 0:01:25]} 20. Bb2 {[%emt 0:02:14][%cal Oc3d5]} Bh4 {[%emt 0:12:02] Black has more active pieces.} ({Black should play} 20... Bf6 $17 21. Qd2 Be6) 21. Rg1 $1 $15 {[%emt 0:01:39][%cal Og2f3]} Ne3 $36 {[%emt 0:01:28][%mdl 2048] Black fights for an advantage.} 22. Qh5 {[%emt 0:03:51] Counterplay Black Now White is beyond hope.} ({White should play} 22. Qb1 $1 $15) 22... Nxc4 $19 {[%emt 0:01:17]} 23. e5 {[%emt 0:01:39]} (23. Rab1 $142) 23... g6 {[%emt 0:07:29]} (23... Nxb2 24. Be4 g6 25. Qh6) 24. Be4 {[%emt 0:05:46][%cal Rg1g6] Threatens to win with Rxg6+!.} Kh8 {[%emt 0:01:01]} 25. Rxg6 {[%emt 0:02:26]} (25. Qh6 Nxb2 26. Raf1) 25... fxg6 {[%emt 0:00:07]} 26. Bxg6 {[%emt 0:00:05]} Qe7 {[%emt 0:01:07]} (26... Nxb2 27. Qxh7#) 27. Nd5 {[%emt 0:01:13]} Qg7 {[%emt 0:00:20]} 28. Bd4 {[%emt 0:02:12]} (28. e6 $142 Nxb2 (28... Qxb2 29. Qxh7#) 29. Bxh7) 28... Be6 {[%emt 0:01:51]} 29. Be4 {[%emt 0:10:18] [#]} Rad8 $1 {[%emt 0:02:53]} 30. Nf6 {[%emt 0:00:00]} (30. Rg1 Qf7) 30... Bxf6 {[%emt 0:00:30]} 31. exf6 {[%emt 0:00:00]} Qf7 {[%emt 0:00:16]} 32. Qh6 {[%emt 0:00:00]} Rxd4 {[%emt 0:00:41]} 33. Bxh7 {[%emt 0:00:00]} Qxh7 {[%emt 0:00:35]} 34. Qxf8+ {[%emt 0:00:00]} Bg8 {[%emt 0:01:13][%cal Od3d2]} 35. Rg1 {[%emt 0:00:03] [#]} Rd7 $1 {[%emt 0:00:00][%cal Od3d2] ( -> ...d2!)} (35... Nxa3 36. Rxg8+ Qxg8 37. Qh6+ Qh7 38. Qf8+ Qg8 39. Qh6+ Qh7 40. Qf8+ Qg8 $11) ({Less strong is} 35... Qe4+ 36. Rg2 $11) (35... d2 36. Rxg8+ Qxg8 37. Qh6+ Qh7 38. Qf8+ Qg8 39. Qh6+ Qh7 40. Qf8+ Qg8 $11) 36. Qc8 {[%emt 0:01:27]} Nb6 {[%emt 0:00:13]} ({Not} 36... Nxa3 37. Rxg8+ Qxg8 38. Qxd7 $11) 37. Qe8 {[%emt 0:02:30]} Qf7 {[%emt 0:00:35]} 38. Qe3 {[%emt 0:00:00] [#]} d2 $1 {[%emt 0:00:25]} 39. Rd1 {[%emt 0:00:28]} (39. Qf3 Qd5) 39... Qh5 {[%emt 0:00:32] Weighted Error Value: White=1.07/Black=0.18 (very precise)   Loses game:     	White=1     	---        Mistake:       	White=5     	Black=2      Inaccurate:     	White=1     	Black=4      OK:         	White=4     	Black=6      Best:        	White=1     	Black=2      Strong:       	White=1     	Black=1} 0-1